fUST/lending_fUST_20250630
["ID","MTS","AMOUNT","RATE_DAILY","PERIOD"]
[368658366,1751268640609,-460.0,0.00018198,2]
[368658368,1751268640618,-460.0,0.00018198,2]
[368658370,1751268640629,-460.0,0.00018198,2]
[368658372,1751268640639,-460.0,0.00018198,2]
[368658374,1751268640647,-460.0,0.00018198,2]
[368658376,1751268640660,-1309.89,0.00018198,2]
[368658378,1751268640670,-460.0,0.00018198,2]
[368658380,1751268640679,-460.0,0.00018198,2]
[368658382,1751268640691,-2371.54,0.00018198,2]
[368658384,1751268640700,-460.0,0.00018198,2]
[368658386,1751268640710,-587.34,0.00018198,2]
[368658388,1751268640719,-880.11,0.00018198,2]
[368658390,1751268640729,-461.7188686,0.00018199,2]
[368658392,1751268640738,-439.38909669,0.00018199,2]
[368658393,1751268640747,-460.0,0.00018199,2]
[368658401,1751268640903,-460.0,0.00018199,2]
[368658402,1751268640912,-460.0,0.00018199,2]
[368658403,1751268640922,-484.1776623,0.00018199,2]
[368658404,1751268640931,-464.7567339,0.00018199,2]
[368658405,1751268640941,-460.0,0.00018199,2]
[368658406,1751268640950,-460.0,0.00018199,2]
[368658407,1751268640960,-460.0,0.00018199,2]
[368658408,1751268640969,-460.0,0.00018199,2]
[368658409,1751268640978,-460.0,0.00018199,2]
[368658410,1751268640987,-460.0,0.00018199,2]
[368658411,1751268640996,-460.0,0.00018199,2]
[368658412,1751268641005,-460.0,0.00018199,2]
[368658413,1751268641014,-500.0,0.00018199,2]
[368658414,1751268641023,-424.98801689,0.00018199,2]
[368658415,1751268641033,-460.0,0.00018199,2]
[368658416,1751268641042,-460.0,0.00018199,2]
[368658417,1751268641051,-239.03280257,0.00018199,2]
[368658418,1751268641061,-500.0,0.00018199,2]
[368658419,1751268641070,-460.0,0.00018199,2]
[368658420,1751268641079,-460.0,0.00018199,2]
[368658421,1751268641088,-602.07513463,0.00018199,2]
[368658422,1751268641097,-461.78511072,0.00018199,2]
[368658423,1751268641106,-460.0,0.00018199,2]
[368658424,1751268641116,-239.59986534,0.00018199,2]
[368658425,1751268641125,-460.0,0.00018199,2]
[368658426,1751268641135,-460.0,0.00018199,2]
[368658427,1751268641144,-460.0,0.00018199,2]
[368658428,1751268641153,-487.1086644,0.00018199,2]
[368658429,1751268641163,-460.0,0.00018199,2]
[368658430,1751268641172,-460.0,0.00018199,2]
[368658431,1751268641181,-500.0,0.00018199,2]
[368658432,1751268641191,-460.0,0.00018199,2]
[368658433,1751268641200,-154.49805001,0.00018199,2]
[368658434,1751268641210,-517.41902607,0.00018199,2]
[368658435,1751268641219,-460.0,0.00018199,2]
[368658436,1751268641228,-460.0,0.00018199,2]
[368658437,1751268641237,-460.0,0.00018199,2]
[368658438,1751268641246,-460.0,0.00018199,2]
[368658439,1751268641255,-460.0,0.00018199,2]
[368658440,1751268641264,-460.0,0.00018199,2]
[368658441,1751268641274,-500.0,0.00018199,2]
[368658442,1751268641283,-500.0,0.00018199,2]
[368658443,1751268641292,-460.0,0.00018199,2]
[368658444,1751268641301,-460.0,0.00018199,2]
[368658445,1751268641310,-487.3,0.00018199,2]
[368658446,1751268641319,-471.04585903,0.000182,2]
[368658447,1751268641328,-394.8219935,0.000182,2]
[368658448,1751268641338,-460.0,0.000182,2]
[368658449,1751268641347,-460.0,0.000182,2]
[368658450,1751268641356,-463.46696186,0.000182,2]
[368658451,1751268641365,-460.0,0.000182,2]
[368658452,1751268641375,-466.6936865,0.000182,2]
[368658453,1751268641384,-460.0,0.000182,2]
[368658454,1751268641393,-460.0,0.000182,2]
[368658455,1751268641402,-460.0,0.000182,2]
[368658456,1751268641411,-201.28796667,0.000182,2]
[368658457,1751268641420,-441.69,0.000182,2]
[368658458,1751268641430,-460.0,0.000182,2]
[368658459,1751268641439,-460.0,0.000182,2]
[368658460,1751268641449,-362.85850998,0.000182,2]
[368658461,1751268641458,-461.38419829,0.000182,2]
[368658462,1751268641467,-463.73520515,0.000182,2]
[368658463,1751268641476,-309.72760043,0.000182,2]
[368658464,1751268641486,-460.0,0.000182,2]
[368658465,1751268641495,-460.0,0.000182,2]
[368658466,1751268641504,-460.0,0.000182,2]
[368658467,1751268641513,-2360.74,0.000182,2]
[368658468,1751268641522,-724.74,0.000182,2]
[368658469,1751268641532,-460.0,0.000182,2]
[368658470,1751268641541,-460.0,0.000182,2]
[368658471,1751268641550,-460.59119554,0.000182,2]
[368658472,1751268641560,-500.0,0.000182,2]
[368658473,1751268641569,-225.59298984,0.00018201,2]
[368658474,1751268641578,-460.0,0.00018201,2]
[368658475,1751268641592,-461.45673651,0.00018201,2]
[368658476,1751268641602,-460.0,0.00018201,2]
[368658477,1751268641612,-460.0,0.00018201,2]
[368658478,1751268641622,-462.20171401,0.00018201,2]
[368658479,1751268641631,-460.0,0.00018201,2]
[368658480,1751268641641,-463.45030882,0.00018201,2]
[368658481,1751268641650,-460.0,0.00018201,2]
[368658482,1751268641660,-463.19768005,0.00018201,2]
[368658483,1751268641670,-460.0,0.00018201,2]
[368658484,1751268641679,-460.0,0.00018201,2]
[368658485,1751268641688,-460.0,0.00018201,2]
[368658486,1751268641697,-460.0,0.00018201,2]
[368658487,1751268641706,-460.0,0.00018201,2]
[368658488,1751268641715,-460.0,0.00018201,2]
[368658489,1751268641725,-460.0,0.00018201,2]
[368658490,1751268641734,-460.0,0.00018201,2]
[368658491,1751268641743,-460.0,0.00018201,2]
[368658492,1751268641752,-457.19490599,0.00018201,2]
[368658493,1751268641762,-460.0,0.00018201,2]
[368658494,1751268641771,-464.309464,0.00018201,2]
[368658495,1751268641780,-460.0,0.00018201,2]
[368658496,1751268641789,-460.0,0.00018201,2]
[368658497,1751268641798,-460.0,0.00018201,2]
[368658498,1751268641807,-350.0,0.00018201,2]
[368658499,1751268641817,-460.0,0.00018201,2]
[368658500,1751268641826,-460.0,0.00018201,2]
[368658501,1751268641835,-348.98118321,0.00018201,2]
[368658502,1751268641844,-241.51884292,0.00018201,2]
[368658503,1751268641854,-195.24071455,0.00018201,2]
[368658504,1751268641863,-462.76073348,0.00018201,2]
[368658505,1751268641872,-231.92973666,0.00018201,2]
[368658506,1751268641881,-460.0,0.00018201,2]
[368658507,1751268641890,-460.0,0.00018201,2]
[368658508,1751268641900,-460.0,0.00018202,2]
[368658509,1751268641912,-460.0,0.00018202,2]
[368658510,1751268641921,-460.0,0.00018202,2]
[368658511,1751268641932,-460.0,0.00018202,2]
[368658512,1751268641941,-460.0,0.00018202,2]
[368658513,1751268641950,-460.0,0.00018202,2]
[368658514,1751268641960,-480.00000012,0.00018202,2]
[368658515,1751268641969,-460.0,0.00018202,2]
[368658516,1751268641979,-460.0,0.00018202,2]
[368658517,1751268641988,-460.0,0.00018202,2]
[368658518,1751268641997,-168.0,0.00018305,2]
[368658519,1751268642007,-364.0,0.00018316,2]
[368658520,1751268642016,-168.0,0.00018373,2]
[368658521,1751268642024,-364.0,0.00018426,2]
[368658522,1751268642034,-590.56,0.00018451,3]
[368658523,1751268642043,-170.7,0.00018461,3]
[368658524,1751268642052,-512.15,0.00018461,3]
[368658525,1751268642062,-196.85,0.00018461,3]
[368658526,1751268642071,-196.85,0.00018462,3]
[368658527,1751268642080,-590.55,0.00018462,3]
[368658528,1751268642090,-460.0,0.0001847,2]
[368658529,1751268642099,-813.35,0.0001847,2]
[368658530,1751268642108,-204.84781325,0.0001847,2]
[368658531,1751268642117,-460.0,0.0001847,2]
[368658532,1751268642126,-460.0,0.0001847,2]
[368658533,1751268642135,-1385.89,0.0001847,2]
[368658534,1751268642146,-460.0,0.00018471,2]
[368658535,1751268642155,-460.0,0.00018471,2]
[368658536,1751268642164,-1110.16,0.00018471,2]
[368658537,1751268642174,-653.22,0.00018471,2]
[368658538,1751268642183,-460.0,0.00018471,2]
[368658539,1751268642194,-1316.35,0.00018471,2]
[368658540,1751268642202,-460.0,0.00018471,2]
[368658541,1751268642212,-460.0,0.00018471,2]
[368658542,1751268642222,-460.0,0.00018471,2]
[368658543,1751268642231,-460.0,0.00018471,2]
[368658544,1751268642240,-460.0,0.00018471,2]
[368658545,1751268642249,-5386.86,0.00018471,2]
[368658546,1751268642259,-460.0,0.00018471,2]
[368658547,1751268642268,-1114.83,0.00018471,2]
[368658548,1751268642277,-460.0,0.00018471,2]
[368658549,1751268642286,-1442.08,0.00018471,2]
[368658550,1751268642296,-1276.03,0.00018471,2]
[368658551,1751268642305,-601.56,0.00018471,2]
[368658552,1751268642314,-460.0,0.00018471,2]
[368658553,1751268642323,-164.2,0.00018471,2]
[368658554,1751268642332,-460.0,0.00018471,2]
[368658555,1751268642341,-466.35,0.00018471,2]
[368658556,1751268642350,-460.0,0.00018471,2]
[368658557,1751268642359,-460.0,0.00018471,2]
[368658558,1751268642369,-460.0,0.00018472,2]
[368658559,1751268642378,-460.0,0.00018472,2]
[368658560,1751268642387,-460.0,0.00018472,2]
[368658561,1751268642397,-460.0,0.00018472,2]
[368658562,1751268642406,-460.0,0.00018472,2]
[368658563,1751268642415,-460.0,0.00018472,2]
[368658564,1751268642425,-460.0,0.00018472,2]
[368658565,1751268642435,-578.38,0.00018472,2]
[368658566,1751268642444,-460.0,0.00018472,2]
[368658567,1751268642454,-661.2,0.00018472,2]
[368658568,1751268642463,-460.0,0.00018472,2]
[368658569,1751268642472,-884.14,0.00018472,2]
[368658570,1751268642481,-471.3,0.00018472,2]
[368658571,1751268642491,-203.92210919,0.00018472,2]
[368658572,1751268642500,-1309.89,0.00018472,2]
[368658573,1751268642510,-460.0,0.00018472,2]
[368658574,1751268642519,-2371.54,0.00018472,2]
[368658575,1751268642528,-460.0,0.00018472,2]
[368658576,1751268642537,-587.34,0.00018472,2]
[368658577,1751268642546,-880.11,0.00018472,2]
[368658578,1751268642556,-460.0,0.00018473,2]
[368658579,1751268642565,-460.0,0.00018473,2]
[368658580,1751268642574,-460.0,0.00018473,2]
[368658581,1751268642588,-157.3,0.00018473,2]
[368658582,1751268642599,-460.0,0.00018473,2]
[368658583,1751268642609,-460.0,0.00018473,2]
[368658584,1751268642619,-460.0,0.00018473,2]
[368658585,1751268642629,-487.3,0.00018473,2]
[368658586,1751268642638,-460.0,0.00018474,2]
[368658587,1751268642647,-460.0,0.00018474,2]
[368658588,1751268642658,-460.0,0.00018474,2]
[368658589,1751268642676,-460.0,0.00018474,2]
[368658590,1751268642690,-2360.74,0.00018474,2]
[368658591,1751268642700,-724.74,0.00018474,2]
[368658592,1751268642710,-460.0,0.00018475,2]
[368658593,1751268642720,-387.40038183,0.00018475,2]
[368658594,1751268642730,-364.0,0.00018535,2]
[368658595,1751268642740,-500.0,0.00018558,2]
[368658596,1751268642750,-500.0,0.00018575,2]
[368658597,1751268642760,-500.0,0.00018605,2]
[368658598,1751268642771,-500.0,0.00018632,2]
[368658599,1751268642780,-345.21844653,0.00018632,2]
[368658600,1751268642790,-500.79792581,0.00018632,2]
[368658601,1751268642800,-1375.43985728,0.00018646,2]
[368658602,1751268642809,-500.0,0.00018661,2]
[368658603,1751268642820,-500.0,0.00018682,2]
[368658604,1751268642830,-490.71279274,0.00018682,2]
[368658605,1751268642839,-500.0,0.000187,2]
[368658606,1751268642848,-500.0,0.000187,2]
[368658607,1751268642858,-813.35,0.00018744,2]
[368658608,1751268642868,-460.0,0.00018744,2]
[368658609,1751268642877,-1385.89,0.00018744,2]
[368658610,1751268642886,-460.0,0.00018745,2]
[368658611,1751268642896,-1110.16,0.00018745,2]
[368658612,1751268642905,-653.22,0.00018745,2]
[368658613,1751268642915,-1316.35,0.00018745,2]
[368658614,1751268642924,-292.00142986,0.00018745,2]
[368658615,1751268642941,-167.99857014,0.00018745,2]
[368658616,1751268642951,-460.0,0.00018745,2]
[368658617,1751268642960,-460.0,0.00018745,2]
[368658618,1751268642970,-269.38670463,0.00018745,2]
[368658619,1751268642979,-3656.93046426,0.00018745,2]
[368658621,1751268642991,-1221.29976255,0.00018745,2]
[368658622,1751268643003,-508.62977319,0.00018745,2]
[368658623,1751268643013,-1114.83,0.00018745,2]
[368658624,1751268643023,-1442.08,0.00018745,2]
[368658625,1751268643033,-1276.03,0.00018745,2]
[368658626,1751268643043,-601.56,0.00018745,2]
[368658627,1751268643052,-460.0,0.00018745,2]
[368658628,1751268643062,-466.35,0.00018745,2]
[368658629,1751268643071,-460.0,0.00018745,2]
[368658630,1751268643081,-460.0,0.00018746,2]
[368658631,1751268643091,-460.0,0.00018746,2]
[368658632,1751268643100,-460.0,0.00018746,2]
[368658633,1751268643111,-460.0,0.00018746,2]
[368658634,1751268643120,-460.0,0.00018746,2]
[368658635,1751268643130,-460.0,0.00018746,2]
[368658636,1751268643139,-578.38,0.00018746,2]
[368658637,1751268643148,-661.2,0.00018746,2]
[368658638,1751268643158,-29.39168566,0.00018746,2]
[368658639,1751268643188,93.54364212,0.000181,2]
[368658640,1751268643211,4120.62442176,0.000181,2]
[368658641,1751268643233,-460.0,0.00018197,2]
[368658642,1751268643242,-165.70831434,0.00018746,2]
[368658643,1751268643252,-884.14,0.00018746,2]
[368658644,1751268643261,-471.3,0.00018746,2]
[368658645,1751268643271,-1309.89,0.00018746,2]
[368658646,1751268643280,-460.0,0.00018746,2]
[368658647,1751268643290,-2371.54,0.00018746,2]
[368658648,1751268643302,-460.0,0.00018746,2]
[368658649,1751268643312,-587.34,0.00018746,2]
[368658650,1751268643321,-150.77423166,0.00018746,2]
[368658651,1751268643528,-362.43,0.00018196,2]
[368658652,1751268643544,-97.57,0.00018196,2]
[368658653,1751268643554,-302.43,0.00018196,2]
[368658655,1751268644788,-157.57,0.00018196,2]
[368658656,1751268644799,-549.26166299,0.00018196,2]
[368658657,1751268644810,-460.0,0.0001847,2]
[368658658,1751268644820,-4.56790744,0.0001847,2]
[368658659,1751268644837,-455.43209256,0.0001847,2]
[368658660,1751268644847,-460.0,0.00018744,2]
[368658661,1751268644857,-396.11,0.00018744,2]
[368658662,1751268644867,-729.33576834,0.00018746,2]
[368658663,1751268644876,-462.0247974,0.00018747,2]
[368658664,1751268644886,-460.0,0.00018747,2]
[368658665,1751268644895,-460.0,0.00018747,2]
[368658666,1751268644905,-460.0,0.00018747,2]
[368658667,1751268644915,-460.0,0.00018747,2]
[368658669,1751268644924,-487.3,0.00018747,2]
[368658671,1751268644933,-561.43583102,0.00018748,2]
[368658672,1751268644943,-460.0,0.00018748,2]
[368658673,1751268644953,-2006.2719621,0.00018748,2]
[368658689,1751268646855,-354.4680379,0.00018748,2]
[368658690,1751268646864,-724.74,0.00018748,2]
[368658691,1751268646874,-460.0,0.00018749,2]
[368658692,1751268646883,-21.25921844,0.00018752,2]
[368658693,1751268646894,-227.74078156,0.00018752,2]
[368658694,1751268646903,-500.0,0.00018752,2]
[368658695,1751268646913,-268.7275041,0.00018752,2]
[368658696,1751268647193,-231.2724959,0.00018752,2]
[368658697,1751268647203,-446.0,0.00018775,2]
[368658698,1751268647214,-164.43784651,0.00018864,2]
[368658699,1751268647224,-446.0,0.00018881,2]
[368658700,1751268647234,-1639.40197532,0.000189,2]
[368658701,1751268647244,-3307.03327484,0.000189,2]
[368658702,1751268647256,-371.48318948,0.000189,2]
[368658703,1751268647268,-591.73502627,0.000189,2]
[368658704,1751268647277,-813.35,0.00019018,2]
[368658705,1751268647286,-460.0,0.00019018,2]
[368658706,1751268647296,-1385.89,0.00019018,2]
[368658707,1751268647305,-653.22,0.00019019,2]
[368658708,1751268647315,-1316.35,0.00019019,2]
[368658709,1751268647324,-460.0,0.00019019,2]
[368658710,1751268647334,-460.0,0.00019019,2]
[368658711,1751268647343,-460.0,0.00019019,2]
[368658712,1751268647352,-5386.86,0.00019019,2]
[368658713,1751268647361,-1114.83,0.00019019,2]
[368658714,1751268647371,-66.76603557,0.00019019,2]
[368658717,1751268663479,-178.16576123,0.00018196,2]
[368658720,1751268895389,-160.59957841,0.00018195,2]
[368658721,1751268973331,199.95608476,0.00018097,2]
[368658723,1751269018794,5679.41949348,0.00017304,2]
[368658724,1751269018817,10000.0,0.00017304,2]
[368658725,1751269018840,9220.58050652,0.00017304,2]
[368658726,1751269025088,164.43784651,0.00018096,2]
[368658727,1751269059841,614.98164697,0.000181,2]
[368658728,1751269059865,4385.01835303,0.000181,2]
[368658730,1751269138236,5614.98164697,0.00017199,2]
[368658731,1751269138259,4385.01835303,0.00017199,2]
[368658733,1751269172765,164.685739,0.00013699,2]
[368658734,1751269179505,5000.0,0.000181,2]
[368658736,1751269275398,164.43784651,0.00018096,2]
[368658737,1751269419629,285.85806146,0.00017265,2]
[368658738,1751269419654,10000.0,0.00017265,2]
[368658739,1751269419677,10000.0,0.00017265,2]
[368658740,1751269419702,1261.64237344,0.00017265,2]
[368658742,1751269518896,164.43784651,0.00018096,2]
[368658754,1751269732371,1562.0298498,0.00018082,2]
[368658758,1751269752188,164.43784651,0.00018095,2]
[368658766,1751269832774,-300.0,0.00018193,2]
[368658767,1751269832784,-300.0,0.00018193,2]
[368658768,1751269832793,-300.0,0.00018193,2]
[368658769,1751269832803,-83.11593496,0.00018193,2]
[368658770,1751269832814,-216.88406504,0.00018193,2]
[368658771,1751269832824,-1200.0,0.00018193,2]
[368658772,1751269832833,-1200.0,0.00018194,2]
[368658773,1751269832843,-500.0,0.00018194,2]
[368658774,1751269832852,-500.0,0.00018194,2]
[368658775,1751269832862,-500.0,0.00018194,2]
[368658776,1751269832871,-418.9201468,0.00018194,2]
[368658777,1751269832881,-86.7996846,0.00018194,2]
[368658788,1751269838823,-373.2003154,0.00018194,2]
[368658789,1751269838834,-577.30956288,0.00018194,2]
[368658790,1751269838843,-720.12,0.00018194,2]
[368658791,1751269838853,-460.0,0.00018194,2]
[368658792,1751269838862,-463.36957731,0.00018194,2]
[368658793,1751269838872,-404.4432404,0.00018195,2]
[368658794,1751269838884,-55.5567596,0.00018195,2]
[368658795,1751269838894,-460.0,0.00018195,2]
[368658796,1751269838907,-460.0,0.00018195,2]
[368658797,1751269838916,-462.05268791,0.00018195,2]
[368658799,1751269838926,-460.0,0.00018195,2]
[368658801,1751269838935,-460.0,0.00018195,2]
[368658803,1751269838944,-460.0,0.00018195,2]
[368658804,1751269838954,-460.0,0.00018195,2]
[368658805,1751269838964,-460.0,0.00018195,2]
[368658806,1751269838975,-460.0,0.00018195,2]
[368658807,1751269838985,-460.0,0.00018195,2]
[368658808,1751269838995,-460.0,0.00018195,2]
[368658809,1751269839006,-460.0,0.00018195,2]
[368658810,1751269839016,-584.45,0.00018195,2]
[368658811,1751269839026,-460.0,0.00018195,2]
[368658813,1751269839035,-460.0,0.00018195,2]
[368658815,1751269839045,-460.0,0.00018195,2]
[368658817,1751269839054,-460.0,0.00018195,2]
[368658819,1751269839064,-460.0,0.00018195,2]
[368658820,1751269839074,-971.39,0.00018195,2]
[368658821,1751269839083,-460.0,0.00018195,2]
[368658822,1751269839093,-460.0,0.00018195,2]
[368658823,1751269839102,-460.0,0.00018195,2]
[368658824,1751269839112,-1154.91,0.00018195,2]
[368658825,1751269839122,-464.93852007,0.00018195,2]
[368658826,1751269839132,-502.76,0.00018195,2]
[368658827,1751269839142,-1152.84,0.00018195,2]
[368658828,1751269839152,-460.0,0.00018195,2]
[368658829,1751269839162,-460.0,0.00018195,2]
[368658830,1751269839172,-4755.36,0.00018195,2]
[368658831,1751269839181,-460.0,0.00018195,2]
[368658832,1751269839191,-1086.77,0.00018195,2]
[368658833,1751269839201,-266.5603266,0.00018195,2]
[368658834,1751269839211,-1261.37,0.00018195,2]
[368658835,1751269839221,-461.45890988,0.00018195,2]
[368658836,1751269839230,-1484.64,0.00018195,2]
[368658837,1751269839240,-460.0,0.00018195,2]
[368658838,1751269839250,-460.0,0.00018195,2]
[368658839,1751269839260,-460.0,0.00018195,2]
[368658840,1751269839270,-460.0,0.00018195,2]
[368658841,1751269839281,-460.0,0.00018195,2]
[368658842,1751269839291,-430.65675599,0.00018195,2]
[368658843,1751269839300,-460.0,0.00018195,2]
[368658844,1751269839310,-556.29,0.00018195,2]
[368658845,1751269839319,-460.0,0.00018195,2]
[368658846,1751269839329,-460.0,0.00018195,2]
[368658847,1751269839339,-460.0,0.00018195,2]
[368658848,1751269839348,-460.0,0.00018195,2]
[368658849,1751269839357,-585.95850354,0.00018195,2]
[368658850,1751269839367,-460.0,0.00018195,2]
[368658851,1751269839376,-460.0,0.00018195,2]
[368658852,1751269839386,-460.0,0.00018195,2]
[368658853,1751269839395,-460.0,0.00018195,2]
[368658854,1751269839404,-460.0,0.00018195,2]
[368658855,1751269839413,-551.57,0.00018195,2]
[368658856,1751269839423,-460.0,0.00018195,2]
[368658857,1751269839432,-373.98,0.00018195,2]
[368658858,1751269839442,-460.0,0.00018196,2]
[368658859,1751269839452,-315.69260314,0.00018196,2]
[368658860,1751269839461,-460.0,0.00018196,2]
[368658861,1751269839471,-461.23190914,0.00018196,2]
[368658862,1751269839480,-460.0,0.00018196,2]
[368658863,1751269839490,-460.0,0.00018196,2]
[368658864,1751269839499,-460.0,0.00018196,2]
[368658865,1751269839509,-466.47988938,0.00018196,2]
[368658866,1751269839519,-460.0,0.00018196,2]
[368658867,1751269839528,-380.99545961,0.00018196,2]
[368658868,1751269839538,-460.0,0.00018196,2]
[368658869,1751269839548,-460.0,0.00018196,2]
[368658870,1751269839558,-461.04796354,0.00018196,2]
[368658871,1751269839567,-426.08296095,0.00018196,2]
[368658872,1751269839578,-460.0,0.00018196,2]
[368658873,1751269839587,-460.0,0.00018196,2]
[368658874,1751269839597,-460.0,0.00018196,2]
[368658875,1751269839607,-359.07669527,0.00018196,2]
[368658876,1751269839617,-460.0,0.00018196,2]
[368658877,1751269839626,-460.0,0.00018196,2]
[368658878,1751269839636,-460.0,0.00018196,2]
[368658879,1751269839646,-460.0,0.00018196,2]
[368658880,1751269839655,-460.0,0.00018196,2]
[368658881,1751269839665,-460.0,0.00018196,2]
[368658882,1751269839674,-579.61225319,0.00018196,2]
[368658883,1751269839687,-376.10501565,0.00018196,2]
[368658884,1751269839697,-460.0,0.00018196,2]
[368658885,1751269839706,-150.027769,0.00018196,2]
[368658886,1751269839716,-461.7316526,0.00018196,2]
[368658887,1751269839725,-460.0,0.00018196,2]
[368658888,1751269839735,-460.0,0.00018196,2]
[368658889,1751269839745,-159.7894581,0.00018196,2]
[368658890,1751269839754,-460.0,0.00018196,2]
[368658891,1751269839763,-460.0,0.00018196,2]
[368658892,1751269839773,-159.77531525,0.00018196,2]
[368658893,1751269839782,-462.18208483,0.00018196,2]
[368658894,1751269839792,-460.0,0.00018196,2]
[368658895,1751269839801,-460.0,0.00018196,2]
[368658896,1751269839811,-464.71620347,0.00018196,2]
[368658897,1751269839821,-334.52610076,0.00018196,2]
[368658898,1751269839834,-125.47389924,0.00018196,2]
[368658899,1751269839843,-500.0,0.00018196,2]
[368658900,1751269839853,-460.0,0.00018196,2]
[368658901,1751269839862,-460.0,0.00018196,2]
[368658902,1751269839872,-222.6803494,0.00018196,2]
[368658903,1751269839881,-460.0,0.00018196,2]
[368658904,1751269839891,-460.0,0.00018196,2]
[368658905,1751269839901,-460.0,0.00018196,2]
[368658906,1751269839913,-2177.96,0.00018196,2]
[368658907,1751269839923,-460.0,0.00018196,2]
[368658908,1751269839932,-466.60094547,0.00018196,2]
[368658909,1751269839942,-460.0,0.00018196,2]
[368658910,1751269839953,-668.46,0.00018196,2]
[368658911,1751269839963,-460.0,0.00018196,2]
[368658912,1751269839972,-612.79,0.00018196,2]
[368658913,1751269839982,-460.0,0.00018196,2]
[368658914,1751269839992,-460.0,0.00018196,2]
[368658915,1751269840002,-460.0,0.00018196,2]
[368658916,1751269840011,-530.96,0.00018196,2]
[368658917,1751269840020,-2169.57,0.00018196,2]
[368658918,1751269840029,-513.92,0.00018196,2]
[368658919,1751269840039,-501.41438909,0.00018197,2]
[368658920,1751269840048,-337.36496104,0.00018197,2]
[368658921,1751269840057,-460.0,0.00018197,2]
[368658922,1751269840066,-460.0,0.00018197,2]
[368658923,1751269840075,-580.27777324,0.00018197,2]
[368658924,1751269840084,-406.81670028,0.00018197,2]
[368658925,1751269840094,-460.0,0.00018197,2]
[368658926,1751269840103,-430.0,0.00018197,2]
[368658927,1751269840113,-460.0,0.00018197,2]
[368658928,1751269840122,-553.74,0.00018197,2]
[368658929,1751269840131,-816.57,0.00018197,2]
[368658930,1751269840140,-1146.15,0.00018197,2]
[368658931,1751269840149,-460.0,0.00018197,2]
[368658932,1751269840159,-460.0,0.00018197,2]
[368658933,1751269840168,-770.1,0.00018197,2]
[368658934,1751269840177,-313.24998737,0.00018199,2]
[368658935,1751269840186,-460.0,0.00018199,2]
[368658936,1751269840195,-669.6,0.00018199,2]
[368658937,1751269840205,-460.0,0.00018199,2]
[368658938,1751269840215,-460.0,0.00018199,2]
[368658939,1751269840224,-258.05504439,0.00018199,2]
[368658940,1751269840233,-460.0,0.00018199,2]
[368658941,1751269840243,-462.42164936,0.00018199,2]
[368658942,1751269840252,-71.94352099,0.00018199,2]
[368658943,1751269840264,-389.62163604,0.00018199,2]
[368658944,1751269840273,-540.50550058,0.00018199,2]
[368658945,1751269840282,-460.0,0.00018199,2]
[368658946,1751269840292,-214.89016738,0.00018199,2]
[368658947,1751269840301,-460.0,0.00018199,2]
[368658948,1751269840310,-460.0,0.00018199,2]
[368658949,1751269840319,-460.0,0.00018199,2]
[368658950,1751269840328,-460.0,0.00018199,2]
[368658951,1751269840338,-460.0,0.00018199,2]